fUST/lending_fUST_20251201
["ID","MTS","AMOUNT","RATE_DAILY","PERIOD"]
[395211895,1764546672418,-500.0,0.00014794,2]
[395211896,1764546672428,-500.0,0.00014794,2]
[395211897,1764546672437,-574.73,0.00014794,2]
[395211898,1764546672449,-500.0,0.00014794,2]
[395211899,1764546672460,-500.0,0.00014794,2]
[395211900,1764546672469,-1436.42,0.00014794,2]
[395211901,1764546672479,-500.0,0.00014794,2]
[395211902,1764546672488,-7693.49,0.00014794,2]
[395211903,1764546672498,-500.0,0.00014794,2]
[395211904,1764546672507,-592.69,0.00014794,2]
[395211905,1764546672516,-500.0,0.00014794,2]
[395211906,1764546672528,-500.0,0.00014794,2]
[395211907,1764546672537,-698.36,0.00014794,2]
[395211908,1764546672547,-500.0,0.00014794,2]
[395211909,1764546672556,-500.0,0.00014794,2]
[395211910,1764546672565,-1557.85,0.00014794,2]
[395211911,1764546672574,-2982.94,0.00014794,2]
[395211912,1764546672583,-500.0,0.00014794,2]
[395211913,1764546672593,-4804.24,0.00014794,2]
[395211914,1764546672602,-500.0,0.00014794,2]
[395211915,1764546672612,-500.0,0.00014794,2]
[395211916,1764546672621,-500.0,0.00014794,2]
[395211917,1764546672630,-1699.1,0.00014794,2]
[395211918,1764546672640,-500.0,0.00014794,2]
[395211919,1764546672649,-500.0,0.00014794,2]
[395211920,1764546672659,-1327.57,0.00014794,2]
[395211921,1764546672668,-500.0,0.00014794,2]
[395211922,1764546672677,-3491.16,0.00014794,2]
[395211923,1764546672687,-500.0,0.00014794,2]
[395211924,1764546672696,-500.0,0.00014794,2]
[395211925,1764546672705,-500.0,0.00014794,2]
[395211926,1764546672714,-500.0,0.00014794,2]
[395211927,1764546672723,-967.52,0.00014794,2]
[395211928,1764546672733,-500.0,0.00014794,2]
[395211929,1764546672742,-1624.27,0.00014794,2]
[395211930,1764546672751,-1994.33,0.00014794,2]
[395211931,1764546672760,-692.49,0.00014794,2]
[395211932,1764546672769,-214.87385351,0.00014794,2]
[395211933,1764546672778,-1067.76,0.00014794,2]
[395211934,1764546672787,-500.07,0.00014794,2]
[395211935,1764546672796,-500.0,0.00014794,2]
[395211936,1764546672806,-4302.71,0.00014794,2]
[395211937,1764546672815,-292.10980016,0.00014794,2]
[395211938,1764546672824,-500.0,0.00014794,2]
[395211939,1764546672834,-17023.31,0.00014794,2]
[395211940,1764546672843,-973.48,0.00014794,2]
[395211941,1764546672853,-500.0,0.00014794,2]
[395211942,1764546672862,-500.0,0.00014794,2]
[395211943,1764546672873,-7122.94,0.00014794,2]
[395211944,1764546672882,-500.0,0.00014794,2]
[395211945,1764546672891,-500.0,0.00014794,2]
[395211946,1764546672901,-991.89,0.00014794,2]
[395211947,1764546672911,-2198.94,0.00014794,2]
[395211948,1764546672920,-249.98418201,0.00014794,2]
[395211949,1764546672930,-500.0,0.00014794,2]
[395211950,1764546672939,-500.0,0.00014794,2]
[395211951,1764546672948,-1953.92,0.00014794,2]
[395211952,1764546672957,-500.0,0.00014794,2]
[395211953,1764546672967,-666.16,0.00014794,2]
[395211954,1764546672976,-536.58,0.00014794,2]
[395211955,1764546672986,-500.0,0.00014794,2]
[395211956,1764546672994,-500.0,0.00014794,2]
[395211957,1764546673003,-812.86,0.00014794,2]
[395211958,1764546673012,-500.0,0.00014794,2]
[395211959,1764546673021,-3659.09,0.00014794,2]
[395211960,1764546673031,-937.14,0.00014794,2]
[395211961,1764546673040,-806.51,0.00014794,2]
[395211962,1764546673049,-625.3,0.00014794,2]
[395211963,1764546673059,-500.0,0.00014794,2]
[395211964,1764546673068,-883.69,0.00014794,2]
[395211965,1764546673077,-500.0,0.00014794,2]
[395211966,1764546673086,-2903.81,0.00014794,2]
[395211967,1764546673096,-1248.41,0.00014794,2]
[395211968,1764546673105,-1839.34,0.00014794,2]
[395211969,1764546673115,-500.0,0.00014794,2]
[395211970,1764546673124,-500.0,0.00014794,2]
[395211971,1764546673134,-500.0,0.00014794,2]
[395211972,1764546673143,-736.18,0.00014794,2]
[395211973,1764546673152,-500.0,0.00014794,2]
[395211974,1764546673161,-500.0,0.00014794,2]
[395211975,1764546673170,-500.0,0.00014794,2]
[395211976,1764546673179,-722.82,0.00014794,2]
[395211977,1764546673188,-500.0,0.00014794,2]
[395211978,1764546673197,-500.0,0.00014794,2]
[395211979,1764546673207,-500.0,0.00014794,2]
[395211980,1764546673216,-3384.57,0.00014794,2]
[395211981,1764546673225,-2305.29,0.00014794,2]
[395211982,1764546673235,-566.73,0.00014794,2]
[395211983,1764546673244,-5889.87,0.00014794,2]
[395211984,1764546673253,-500.0,0.00014794,2]
[395211985,1764546673262,-1307.73,0.00014794,2]
[395211986,1764546673271,-500.0,0.00014794,2]
[395211987,1764546673281,-1277.24,0.00014794,2]
[395211988,1764546673290,-500.0,0.00014794,2]
[395211989,1764546673299,-500.0,0.00014794,2]
[395211990,1764546673308,-500.0,0.00014794,2]
[395211991,1764546673317,-500.0,0.00014794,2]
[395211992,1764546673326,-2462.84,0.00014794,2]
[395211993,1764546673336,-3186.44,0.00014794,2]
[395211994,1764546673345,-3100.68,0.00014794,2]
[395211995,1764546673355,-500.0,0.00014794,2]
[395211996,1764546673364,-500.0,0.00014794,2]
[395211997,1764546673374,-2751.59,0.00014794,2]
[395211998,1764546673383,-1366.61,0.00014794,2]
[395211999,1764546673393,-2803.44,0.00014794,2]
[395212000,1764546673402,-793.21,0.00014794,2]
[395212001,1764546673412,-500.0,0.00014794,2]
[395212002,1764546673421,-3244.25,0.00014794,2]
[395212003,1764546673431,-2093.34,0.00014794,2]
[395212004,1764546673440,-500.0,0.00014794,2]
[395212005,1764546673453,-605.29,0.00014794,2]
[395212006,1764546673462,-997.88,0.00014794,2]
[395212007,1764546673472,-500.0,0.00014794,2]
[395212008,1764546673481,-500.0,0.00014794,2]
[395212009,1764546673491,-6663.38,0.00014794,2]
[395212010,1764546673500,-546.68,0.00014794,2]
[395212011,1764546673509,-3206.39,0.00014794,2]
[395212012,1764546673518,-500.0,0.00014794,2]
[395212013,1764546673530,-500.0,0.00014794,2]
[395212014,1764546673539,-10962.07,0.00014794,2]
[395212015,1764546673548,-2081.16,0.00014794,2]
[395212016,1764546673557,-500.0,0.00014794,2]
[395212017,1764546673567,-500.0,0.00014794,2]
[395212018,1764546673577,-3738.35,0.00014794,2]
[395212019,1764546673588,-8512.06,0.00014794,2]
[395212020,1764546673597,-500.0,0.00014794,2]
[395212021,1764546673607,-665.76,0.00014794,2]
[395212022,1764546673616,-500.0,0.00014794,2]
[395212023,1764546673626,-818.82,0.00014794,2]
[395212024,1764546673635,-1983.2,0.00014794,2]
[395212025,1764546673645,-500.0,0.00014794,2]
[395212026,1764546673654,-215.21388673,0.00014794,2]
[395212027,1764546673663,-878.37,0.00014794,2]
[395212028,1764546673672,-500.0,0.00014794,2]
[395212029,1764546673681,-500.0,0.00014794,2]
[395212030,1764546673690,-3523.6,0.00014794,2]
[395212031,1764546673699,-500.0,0.00014794,2]
[395212032,1764546673708,-1398.71,0.00014794,2]
[395212033,1764546673718,-500.0,0.00014794,2]
[395212034,1764546673727,-515.11,0.00014794,2]
[395212035,1764546673736,-500.0,0.00014794,2]
[395212036,1764546673746,-500.0,0.00014794,2]
[395212037,1764546673755,-891.78,0.00014794,2]
[395212038,1764546673765,-984.46,0.00014794,2]
[395212039,1764546673775,-500.0,0.00014794,2]
[395212040,1764546673784,-500.0,0.00014794,2]
[395212041,1764546673794,-500.0,0.00014794,2]
[395212042,1764546673804,-855.59,0.00014794,2]
[395212043,1764546673814,-500.0,0.00014794,2]
[395212044,1764546673824,-1635.86,0.00014794,2]
[395212045,1764546673833,-500.0,0.00014794,2]
[395212046,1764546673843,-2967.73,0.00014794,2]
[395212047,1764546673852,-856.16,0.00014794,2]
[395212048,1764546673862,-555.13,0.00014794,2]
[395212049,1764546673871,-737.47,0.00014794,2]
[395212050,1764546673881,-500.0,0.00014794,2]
[395212051,1764546673891,-6277.43,0.00014794,2]
[395212052,1764546673900,-4264.11,0.00014794,2]
[395212053,1764546673910,-894.23,0.00014794,2]
[395212054,1764546673919,-500.0,0.00014794,2]
[395212055,1764546673929,-851.88,0.00014794,2]
[395212056,1764546673938,-500.0,0.00014794,2]
[395212057,1764546673948,-500.0,0.00014794,2]
[395212058,1764546673957,-500.0,0.00014794,2]
[395212059,1764546673966,-1079.66,0.00014794,2]
[395212060,1764546673976,-2029.56,0.00014794,2]
[395212061,1764546673985,-2066.95,0.00014794,2]
[395212062,1764546673994,-2479.33,0.00014794,2]
[395212063,1764546674003,-500.0,0.00014794,2]
[395212064,1764546674013,-2923.79,0.00014794,2]
[395212065,1764546674022,-2928.27,0.00014794,2]
[395212066,1764546674031,-500.0,0.00014794,2]
[395212067,1764546674041,-1474.63,0.00014794,2]
[395212068,1764546674050,-500.0,0.00014795,2]
[395212069,1764546674060,-500.0,0.00014795,2]
[395212070,1764546674070,-267.41109129,0.00014795,2]
[395212071,1764546674079,-1500.0,0.00014795,2]
[395212072,1764546674088,-501.96148358,0.00014795,2]
[395212073,1764546674098,-500.0,0.00014795,2]
[395212074,1764546674107,-1500.0,0.00014795,2]
[395212075,1764546674118,-1001.91131789,0.00014795,2]
[395212076,1764546674128,-1382.59704775,0.00014795,2]
[395212077,1764546674138,-1500.0,0.00014795,2]
[395212078,1764546674148,-1500.0,0.00014795,2]
[395212079,1764546674157,-622.78389725,0.00014795,2]
[395212080,1764546674166,-616.60669535,0.00014795,2]
[395212081,1764546674176,-1500.0,0.00014795,2]
[395212082,1764546674186,-1500.0,0.00014795,2]
[395212083,1764546674195,-1500.0,0.00014795,2]
[395212084,1764546674205,-1500.0,0.00014795,2]
[395212085,1764546674215,-1500.0,0.00014795,2]
[395212086,1764546674225,-1500.0,0.00014795,2]
[395212087,1764546674234,-543.10709351,0.00014795,2]
[395212088,1764546674243,-1500.93547823,0.00014795,2]
[395212089,1764546674253,-1409.64450747,0.00014795,2]
[395212090,1764546674262,-1500.0,0.00014795,2]
[395212091,1764546674271,-1500.0,0.00014795,2]
[395212092,1764546674280,-1500.0,0.00014795,2]
[395212093,1764546674290,-1594.16386053,0.00014795,2]
[395212094,1764546674299,-1500.0,0.00014795,2]
[395212095,1764546674309,-1500.0,0.00014795,2]
[395212096,1764546674319,-1500.0,0.00014795,2]
[395212097,1764546674329,-1500.77352212,0.00014795,2]
[395212098,1764546674338,-1500.0,0.00014795,2]
[395212099,1764546674348,-1500.0,0.00014795,2]
[395212100,1764546674357,-1500.0,0.00014795,2]
[395212101,1764546674518,-1500.0,0.00014795,2]
[395212102,1764546674528,-168.0,0.00014822,2]
[395212103,1764546674539,-700.0,0.0001487,2]
[395212104,1764546674549,-500.0,0.00014877,2]
[395212105,1764546674560,-500.0,0.00014912,2]
[395212106,1764546674570,-700.0,0.00014914,2]
[395212107,1764546674579,-2000.0,0.00014916,2]
[395212108,1764546674591,-2000.0,0.00014916,2]
[395212109,1764546674601,-2000.0,0.00014916,2]
[395212110,1764546674610,-2000.0,0.00014916,2]
[395212111,1764546674620,-2000.0,0.00014916,2]
[395212112,1764546674630,-2000.0,0.00014916,2]
[395212113,1764546674640,-2000.0,0.00014916,2]
[395212114,1764546674649,-2000.0,0.00014916,2]
[395212115,1764546674659,-160.0,0.00014964,4]
[395212116,1764546674668,-910.1432354,0.00014984,2]
[395212117,1764546674678,-2000.0,0.00015,2]
[395212118,1764546674688,-4125.726738,0.00015,2]
[395212119,1764546674697,-2339.0,0.00015,10]
[395212120,1764546674707,-17380.94163304,0.00015,2]
[395212121,1764546675152,-500.0,0.00013273,2]
[395212122,1764546675417,-776.846705,0.000135,2]
[395212123,1764546675426,-378.55389982,0.00013534,2]
[395212124,1764546676390,-242.83953365,0.00012514,2]
[395212481,1764547832799,-410.37972647,7.597e-05,2]
[395212482,1764547832810,-43.21961705,7.597e-05,2]
[395212625,1764547839267,-170.78038295,7.597e-05,2]
[395212627,1764547839278,-410.37972647,7.674e-05,2]
[395212629,1764547839289,-410.37972647,7.752e-05,2]
[395212631,1764547839300,-211.71332562,8.111e-05,2]
[395212633,1764547839311,-262.1709754,9.104e-05,2]
[395212635,1764547839322,-261.68357604,9.375e-05,2]
[395212637,1764547839335,-249.82172423,0.00010111,2]
[395212639,1764547839346,-353.67603643,0.00012,2]
[395212641,1764547839357,-287.93012284,0.00012111,2]
[395212643,1764547839369,-261.68357604,0.00012506,2]
[395212645,1764547839380,-1000.0,0.00012625,2]
[395212647,1764547839391,-998.0,0.00012625,2]
[395212649,1764547839403,-500.0,0.00012633,2]
[395212651,1764547839413,-500.0,0.00012633,2]
[395212653,1764547839425,-500.0,0.00012633,2]
[395212655,1764547839444,-500.0,0.00012633,2]
[395212658,1764547839456,-409.18570291,0.00012633,2]
[395212661,1764547839468,-322.39114695,0.00012633,2]
[395212664,1764547839478,-500.0,0.00012633,2]
[395212666,1764547839488,-218.50874863,0.00012633,2]
[395212668,1764547839503,-281.49125137,0.00012633,2]
[395212670,1764547839514,-305.40592786,0.00012633,2]
[395212672,1764547839528,-194.59407214,0.00012633,2]
[395212674,1764547839541,-387.32133264,0.00012633,2]
[395212677,1764547839553,-500.0,0.00012633,2]
[395212679,1764547839563,-500.0,0.00012633,2]
[395212680,1764547839574,-500.0,0.00012633,2]
[395212683,1764547839585,-500.0,0.00012633,2]
[395212685,1764547839596,-500.0,0.00012633,2]
[395212687,1764547839607,-500.0,0.00012633,2]
[395212688,1764547839617,-500.0,0.00012633,2]
[395212691,1764547839628,-500.0,0.00012633,2]
[395212693,1764547839642,-500.0,0.00012633,2]
[395212695,1764547839653,-500.0,0.00012633,2]
[395212697,1764547839664,-500.0,0.00012633,2]
[395212699,1764547839675,-500.0,0.00012633,2]
[395212701,1764547839692,-270.52623183,0.00012633,2]
[395212703,1764547839706,-229.47376817,0.00012633,2]
[395212705,1764547839717,-78.36273163,0.00012633,2]
[395212707,1764547839730,-421.63726836,0.00012633,2]
[395212709,1764547839741,-300.0,0.00012763,2]
[395212711,1764547839752,-300.0,0.00012763,2]
[395212713,1764547839763,-300.0,0.00012763,2]
[395212715,1764547839773,-300.0,0.00012763,2]
[395212717,1764547839783,-300.0,0.00012763,2]
[395212719,1764547839793,-300.0,0.00012763,2]
[395212721,1764547839803,-300.0,0.00012763,2]
[395212723,1764547839814,-300.0,0.00012763,2]
[395212725,1764547839825,-300.0,0.00012763,2]
[395212727,1764547839835,-300.0,0.00012763,2]
[395212729,1764547839846,-300.0,0.00012763,2]
[395212731,1764547839856,-300.0,0.00012763,2]
[395212733,1764547839867,-300.0,0.00012763,2]
[395212736,1764547839877,-300.0,0.00012763,2]
[395212738,1764547839887,-300.0,0.00012763,2]
[395212740,1764547839897,-600.0,0.00012892,2]
[395212771,1764547840193,-231.28369723,0.00013203,2]
[395212774,1764547840204,-500.0,0.00013273,2]
[395212777,1764547840214,-500.0,0.00013273,2]
[395212781,1764547840224,-500.0,0.00013273,2]
[395212784,1764547840235,-500.0,0.00013273,2]
[395212787,1764547840245,-501.7254418,0.00013273,2]
[395212789,1764547840257,-500.0,0.00013273,2]
[395212792,1764547840267,-500.0,0.00013273,2]
[395212794,1764547840277,-500.0,0.00013273,2]
[395212796,1764547840287,-258.86741491,0.00013273,2]
[395212798,1764547840297,-500.0,0.00013273,2]
[395212800,1764547840306,-500.0,0.00013273,2]
[395212802,1764547840318,-500.0,0.00013273,2]
[395212804,1764547840328,-500.0,0.00013273,2]
[395212806,1764547840338,-301.7532616,0.00013474,2]
[395212808,1764547840348,-301.7532616,0.00013474,2]
[395212811,1764547840360,-301.7532616,0.00013474,2]
[395212813,1764547840370,-500.0,0.00013546,2]
[395212814,1764547840380,-220.65947427,0.00013547,2]
[395212816,1764547840391,-306.77335396,0.00013573,2]
[395212822,1764547840403,-306.77335393,0.00013579,2]
[395212824,1764547840413,-306.77335393,0.00013586,2]
[395212826,1764547840423,-306.77335393,0.00013592,2]
[395212828,1764547840438,-306.77335393,0.00013598,2]
[395212830,1764547840448,-300.0,0.00013673,2]
[395212832,1764547840460,-500.0,0.00013698,2]
[395212834,1764547840471,-500.0,0.00013698,2]
[395212836,1764547840481,-500.0,0.00013698,2]
[395212838,1764547840490,-500.0,0.00013698,2]
[395212840,1764547840500,-500.0,0.00013698,2]
[395212842,1764547840510,-500.0,0.00013698,2]
[395212844,1764547840520,-516.11126996,0.00013698,2]
[395212846,1764547840529,-500.0,0.00013698,2]
[395212848,1764547840539,-500.0,0.00013698,2]
[395212850,1764547840548,-231.56874513,0.00013698,2]
[395212852,1764547840558,-169.546341,0.00013698,2]
[395212854,1764547840567,-555.23,0.00013698,2]
[395212856,1764547840577,-500.0,0.00013698,2]
[395212858,1764547840587,-715.49,0.00013698,2]
[395212860,1764547840598,-500.0,0.00013698,2]
[395212862,1764547840608,-383.34000406,0.00013698,2]
[395212864,1764547840618,-500.0,0.00013698,2]
[395212866,1764547840628,-500.0,0.00013698,2]
[395212868,1764547840637,-1930.01,0.00013698,2]
[395212870,1764547840647,-550.14,0.00013698,2]
[395212872,1764547840657,-500.0,0.00013698,2]
[395212874,1764547840667,-500.0,0.00013698,2]
[395212876,1764547840682,-620.22,0.00013698,2]
[395212878,1764547840692,-1004.82,0.00013698,2]
[395212880,1764547840702,-500.0,0.00013698,2]
[395212882,1764547840711,-500.0,0.00013698,2]
[395212884,1764547840721,-500.0,0.00013698,2]
[395212886,1764547840731,-500.0,0.00013698,2]
[395212888,1764547840740,-553.97,0.00013698,2]
[395212890,1764547840749,-500.0,0.00013698,2]
[395212892,1764547840759,-522.8705465,0.00013698,2]
[395212894,1764547840769,-500.0,0.00013698,2]
[395212896,1764547840779,-1164.46,0.00013698,2]
[395212898,1764547840788,-500.0,0.00013698,2]
[395212900,1764547840798,-500.0,0.00013698,2]
[395212902,1764547840808,-500.0,0.00013698,2]
[395212905,1764547840818,-500.0,0.00013698,2]
[395212908,1764547840827,-500.0,0.00013698,2]
[395212911,1764547840837,-551.76,0.00013698,2]
[395212914,1764547840847,-500.0,0.00013698,2]
[395212917,1764547840857,-500.0,0.00013698,2]
[395212922,1764547840869,-672.98,0.00013698,2]
[395212924,1764547840879,-500.0,0.00013698,2]
[395212927,1764547840889,-500.0,0.00013698,2]
[395212930,1764547840900,-500.0,0.00013698,2]
[395212933,1764547840910,-500.0,0.00013698,2]
[395212936,1764547840920,-500.0,0.00013698,2]
[395212939,1764547840934,-758.56,0.00013698,2]
[395212942,1764547840945,-500.0,0.00013698,2]
[395212946,1764547840955,-500.0,0.00013698,2]
[395212949,1764547840966,-500.0,0.00013698,2]
[395212952,1764547840976,-572.24,0.00013698,2]
[395212955,1764547840986,-500.0,0.00013698,2]
[395212957,1764547840996,-1551.99,0.00013698,2]
[395212960,1764547841007,-500.0,0.00013698,2]
[395212963,1764547841022,-500.0,0.00013698,2]
[395212966,1764547841032,-593.28,0.00013698,2]
[395212969,1764547841041,-500.0,0.00013698,2]
[395212972,1764547841051,-500.0,0.00013698,2]
[395212974,1764547841064,-500.0,0.00013698,2]
[395212977,1764547841077,-500.0,0.00013698,2]
[395212979,1764547841088,-567.44268622,0.00013698,2]
[395212981,1764547841101,-500.0,0.00013698,2]
[395212983,1764547841111,-500.0,0.00013698,2]
[395212985,1764547841121,-1501.36,0.00013698,2]
[395212987,1764547841131,-500.0,0.00013698,2]
[395212989,1764547841141,-500.0,0.00013698,2]
[395212991,1764547841151,-1043.26,0.00013698,2]
[395212993,1764547841160,-1167.96,0.00013698,2]
[395212995,1764547841170,-875.49,0.00013698,2]
[395212996,1764547841184,-500.0,0.00013698,2]
[395212999,1764547841194,-775.42,0.00013698,2]
[395213001,1764547841204,-500.0,0.00013698,2]
[395213003,1764547841213,-500.0,0.00013698,2]
[395213004,1764547841223,-775.78,0.00013698,2]
[395213007,1764547841233,-500.0,0.00013698,2]
[395213009,1764547841242,-628.32,0.00013698,2]
[395213011,1764547841251,-500.0,0.00013698,2]
[395213013,1764547841261,-500.0,0.00013698,2]
[395213015,1764547841271,-630.12541533,0.00013698,2]
[395213017,1764547841280,-677.04,0.00013698,2]
[395213019,1764547841290,-500.0,0.00013698,2]
[395213021,1764547841299,-151.0,0.00013698,2]
[395213023,1764547841309,-500.0,0.00013698,2]
[395213025,1764547841319,-151.0,0.00013698,2]
[395213026,1764547841329,-151.0,0.00013698,2]
[395213029,1764547841339,-500.0,0.00013698,2]
[395213030,1764547841349,-657.5,0.00013698,2]
[395213033,1764547841361,-500.0,0.00013698,2]
[395213035,1764547841373,-500.0,0.00013698,2]
[395213037,1764547841385,-874.25,0.00013698,2]
[395213038,1764547841395,-500.0,0.00013698,2]
[395213041,1764547841406,-500.0,0.00013698,2]
[395213042,1764547841416,-536.05,0.00013698,2]
[395213044,1764547841426,-500.0,0.00013698,2]
[395213046,1764547841440,-500.0,0.00013698,2]
[395213049,1764547841450,-500.0,0.00013698,2]
[395213050,1764547841461,-544.42,0.00013698,2]
[395213053,1764547841471,-2398.0,0.00013698,2]
[395213055,1764547841481,-500.0,0.00013698,2]
[395213056,1764547841492,-500.0,0.00013698,2]
[395213059,1764547841503,-500.0,0.00013698,2]
[395213061,1764547841513,-500.0,0.00013698,2]
[395213063,1764547841523,-587.57,0.00013698,2]
[395213064,1764547841533,-652.74,0.00013698,2]
[395213066,1764547841543,-845.98,0.00013698,2]
[395213069,1764547841552,-500.0,0.00013698,2]
[395213071,1764547841562,-500.0,0.00013698,2]
[395213073,1764547841572,-500.0,0.00013698,2]
[395213074,1764547841582,-500.0,0.00013698,2]
[395213076,1764547841592,-500.0,0.00013698,2]
[395213078,1764547841601,-656.44,0.00013698,2]
[395213080,1764547841614,-558.01,0.00013698,2]
[395213082,1764547841624,-500.0,0.00013698,2]
[395213085,1764547841634,-500.0,0.00013698,2]
[395213086,1764547841644,-500.0,0.00013698,2]
[395213089,1764547841655,-807.47,0.00013698,2]
[395213090,1764547841665,-500.0,0.00013698,2]
[395213092,1764547841675,-571.18045511,0.00013698,2]
[395213095,1764547841691,-500.0,0.00013698,2]
[395213097,1764547841701,-544.86,0.00013698,2]
[395213099,1764547841711,-500.0,0.00013698,2]
[395213101,1764547841721,-500.0,0.00013698,2]
[395213103,1764547841731,-500.0,0.00013698,2]
[395213105,1764547841741,-500.0,0.00013698,2]
[395213107,1764547841751,-500.0,0.00013698,2]
[395213109,1764547841761,-500.0,0.00013698,2]
[395213111,1764547841771,-500.0,0.00013698,2]
[395213113,1764547841780,-529.95,0.00013698,2]
[395213114,1764547841789,-500.0,0.00013698,2]
[395213116,1764547841800,-2030.27,0.00013698,2]
[395213118,1764547841810,-500.0,0.00013698,2]
[395213120,1764547841820,-500.0,0.00013698,2]
[395213122,1764547841830,-675.07,0.00013698,2]
[395213124,1764547841840,-500.0,0.00013698,2]
[395213126,1764547841849,-500.0,0.00013698,2]
[395213128,1764547841859,-500.0,0.00013698,2]
[395213130,1764547841869,-429.62049354,0.00013698,2]
[395213132,1764547841879,-1034.83,0.00013698,2]
[395213134,1764547841888,-500.0,0.00013698,2]
[395213136,1764547841898,-500.0,0.00013698,2]
[395213138,1764547841908,-679.79,0.00013698,2]
[395213140,1764547841918,-500.0,0.00013698,2]
[395213143,1764547841932,-948.53,0.00013698,2]
[395213145,1764547841942,-500.0,0.00013698,2]
[395213147,1764547841951,-2364.55,0.00013698,2]
[395213149,1764547841961,-809.24,0.00013698,2]
[395213151,1764547841971,-500.0,0.00013698,2]
[395213153,1764547841981,-500.0,0.00013698,2]
[395213155,1764547841991,-500.0,0.00013698,2]
[395213157,1764547842000,-500.0,0.00013698,2]
[395213159,1764547842013,-772.8,0.00013698,2]
[395213160,1764547842025,-500.0,0.00013698,2]
[395213162,1764547842035,-500.0,0.00013698,2]
[395213164,1764547842044,-500.0,0.00013698,2]
[395213166,1764547842055,-500.0,0.00013698,2]
[395213168,1764547842064,-743.42,0.00013698,2]
[395213170,1764547842074,-500.0,0.00013698,2]
[395213172,1764547842083,-500.0,0.00013698,2]
[395213174,1764547842095,-500.0,0.00013698,2]
[395213176,1764547842105,-500.0,0.00013698,2]
[395213178,1764547842115,-1229.64,0.00013698,2]
[395213180,1764547842124,-500.0,0.00013698,2]
[395213183,1764547842133,-502.5729917,0.00013698,2]
[395213184,1764547842143,-500.0,0.00013698,2]
[395213187,1764547842153,-500.0,0.00013698,2]
[395213189,1764547842162,-1653.8,0.00013698,2]
[395213191,1764547842172,-500.0,0.00013698,2]
[395213192,1764547842189,-500.0,0.00013698,2]
[395213195,1764547842198,-952.37,0.00013698,2]
[395213197,1764547842209,-500.0,0.00013698,2]
[395213198,1764547842219,-500.0,0.00013698,2]
[395213201,1764547842228,-1065.54,0.00013698,2]
[395213203,1764547842238,-500.0,0.00013698,2]
[395213205,1764547842247,-500.0,0.00013698,2]
[395213206,1764547842257,-500.0,0.00013698,2]
[395213209,1764547842267,-500.0,0.00013698,2]
[395213211,1764547842276,-500.0,0.00013698,2]
[395213213,1764547842286,-500.0,0.00013698,2]
[395213215,1764547842296,-500.0,0.00013698,2]
[395213217,1764547842306,-1163.63,0.00013698,2]
[395213219,1764547842316,-500.0,0.00013698,2]
[395213221,1764547842324,-500.0,0.00013698,2]
[395213223,1764547842334,-500.0,0.00013698,2]
[395213225,1764547842343,-774.67,0.00013698,2]
[395213227,1764547842353,-500.0,0.00013698,2]
[395213229,1764547842363,-500.0,0.00013698,2]